bitfinex/quotes_ETHUSD_20250731
["timestamp","ask_amount","ask_price","bid_price","bid_amount"]
[1753933808512,1e-08,3867.2,3866.6,4.25]
[1753933809116,0.24208605,3867.2,3866.6,4.25]
[1753933809285,1e-08,3867.2,3866.7,1.29888097]
[1753933813934,1e-08,3867.2,3866.7,5.54888097]
[1753933814237,1e-08,3867.2,3866.8,4.25]
[1753933815152,1e-08,3867.2,3866.9,3.911]
[1753933819047,1e-08,3867.2,3866.8,4.25]
[1753933819048,1e-08,3867.2,3867.0,3.911]
[1753933819252,1e-08,3867.2,3867.0,4.8569881]
[1753933820915,1e-08,3867.2,3867.1,4.25]
[1753933822646,1e-08,3867.2,3867.1,8.161]
[1753933823831,1e-08,3867.2,3867.1,4.25]
[1753933824037,1e-08,3867.2,3867.1,8.166]
[1753933824216,1e-08,3867.2,3867.1,8.9826]
[1753933826016,1e-08,3867.6,3867.1,8.9826]
[1753933828867,1e-08,3867.6,3867.2,3.914]
[1753933831858,1e-08,3867.6,3867.3,4.25]
[1753933832063,1e-08,3867.6,3867.4,3.914]
[1753933832262,1e-08,3867.6,3867.5,0.8164]
[1753933832828,1e-08,3867.6,3867.5,3.913]
[1753933836663,1e-08,3867.6,3867.3,4.25]
[1753933836860,1e-08,3867.6,3867.5,3.914]
[1753933839854,1e-08,3867.6,3867.5,3.913]
[1753933845393,1e-08,3867.6,3867.0,4.25]
[1753933845580,0.55000001,3867.6,3867.1,3.912]
[1753933846177,1e-08,3867.6,3867.1,3.912]
[1753933846792,1e-08,3867.6,3867.2,3.911]
[1753933849219,1e-08,3867.6,3867.0,4.25]
[1753933849384,1e-08,3867.6,3867.1,3.911]
[1753933852236,1e-08,3867.6,3867.2,3.91]
[1753933852694,1e-08,3867.6,3867.3,3.91]
[1753933859767,1e-08,3867.6,3867.3,4.3011]
[1753933860615,1e-08,3867.6,3867.4,4.25]
[1753933861242,1e-08,3867.6,3867.3,9.12690971]
[1753933861243,1e-08,3867.6,3867.5,4.25]
[1753933862640,0.002,3868.0,3867.5,4.25]
[1753933862841,0.002,3868.0,3867.6,8.16]
[1753933863028,0.002,3868.0,3867.7,0.816]
[1753933865217,0.002,3868.0,3867.8,3.909]
[1753933867255,0.002,3868.0,3867.9,4.25]
[1753933868152,0.55,3869.2,3867.9,4.25]
[1753933868453,0.24188731,3869.1,3868.0,4.25]
[1753933868653,0.24188731,3869.0,3868.1,4.7239]
[1753933868855,0.24188731,3868.9,3868.1,4.7239]
[1753933869053,4.82580971,3869.3,3868.1,4.7239]
[1753933869242,0.24187433,3869.2,3868.1,4.7239]
[1753933869456,0.24187433,3869.1,3868.1,4.7239]
[1753933869647,0.24187433,3869.0,3868.2,0.89739]
[1753933869939,0.24187433,3868.9,3868.2,0.89739]
[1753933870143,0.55,3868.8,3868.2,0.89739]
[1753933872957,0.55,3869.0,3868.2,0.89739]
[1753933873144,0.55,3868.8,3868.2,0.89739]
[1753933873351,0.55,3868.8,3868.3,0.905539]
[1753933873517,0.55,3868.8,3868.4,3.908]
[1753933874427,0.552,3868.8,3868.4,3.908]
[1753933882567,0.002,3868.8,3868.4,3.908]
[1753933883068,0.552,3868.8,3868.4,3.908]
[1753933883959,0.002,3868.8,3868.4,3.908]
[1753933884155,0.002,3868.8,3867.5,4.25]
[1753933884366,0.002,3868.8,3867.6,4.85379097]
[1753933884367,0.552,3868.8,3867.6,4.85379097]
[1753933884583,0.24190706,3868.7,3867.7,3.907]
[1753933885082,0.552,3868.8,3867.8,4.25]
[1753933890776,0.552,3868.8,3867.9,4.25]
[1753933893991,0.552,3868.8,3868.0,3.907]
[1753933894189,1.08978097,3868.8,3868.0,3.907]
[1753933894564,1.08978097,3868.8,3867.9,4.25]
[1753933894791,1.08978097,3868.8,3868.0,3.907]
[1753933896563,0.55,3868.6,3868.0,3.907]
[1753933899418,0.002,3868.8,3868.0,3.907]
[1753933899586,0.002,3868.8,3868.1,1.0119]
[1753933901415,0.552,3868.8,3868.1,1.0119]
[1753933901718,0.002,3868.8,3868.1,1.0119]
[1753933905500,0.002,3868.8,3868.2,4.25]
[1753933906843,0.002,3868.8,3868.1,5.2619]
[1753933907015,0.002,3868.8,3868.3,3.907]
[1753933921543,0.002,3868.8,3868.4,3.907]
[1753933921742,0.002,3868.8,3868.1,4.251]
[1753933921947,0.55,3868.3,3868.1,4.251]
[1753933922155,0.55,3868.3,3868.2,3.907]
[1753933922688,1.08758097,3868.3,3868.1,0.001]
[1753933923177,1.08758097,3868.3,3868.2,3.909]
[1753933923366,1.32992099,3868.3,3868.2,3.909]
[1753933924375,1.08758097,3868.3,3868.2,3.909]
[1753933925695,0.55,3868.3,3868.2,3.909]
[1753933925897,0.002,3868.8,3868.2,3.909]
[1753933926350,0.24222952,3868.7,3868.2,3.909]
[1753933926693,0.002,3868.8,3868.2,3.909]
[1753933928090,0.552,3868.8,3868.2,3.909]
[1753933928277,0.002,3868.8,3868.3,0.816]
[1753933930169,0.002,3868.8,3868.4,3.912]
[1753933932252,0.002,3868.8,3868.5,4.25]
[1753933933588,0.002,3868.8,3868.6,3.911]
[1753933939289,0.002,3868.8,3868.7,3.91]
[1753933939478,0.002,3868.8,3868.4,4.25]
[1753933939687,0.002,3868.8,3868.5,4.4166]
[1753933940062,0.002,3868.8,3868.4,4.25]
[1753933940261,0.002,3868.8,3868.6,3.91]
[1753933940463,0.002,3868.8,3868.3,0.001]
[1753933940663,0.55,3868.6,3868.4,3.91]
[1753933940977,0.55,3868.6,3868.5,3.91]
[1753933941489,0.55,3868.6,3868.3,0.001]
[1753933941687,1.08778097,3868.6,3868.4,3.91]
[1753933942595,0.002,3868.8,3868.4,3.91]
[1753933947991,0.002,3868.8,3868.5,3.914]
[1753933948303,0.002,3868.8,3868.6,3.914]
[1753933948600,0.002,3868.8,3868.7,3.915]
[1753933948806,0.002,3868.8,3868.3,0.001]
[1753933949011,0.55,3868.5,3868.4,3.916]
[1753933949309,0.55,3868.5,3868.3,0.001]
[1753933949469,5.37580971,3868.5,3868.4,3.916]
[1753933949797,0.55,3868.4,3868.3,0.001]
[1753933950004,0.55,3868.4,3868.3,3.917]
[1753933950297,1.08758097,3868.4,3868.3,3.917]
[1753933951271,1.08758097,3868.4,3868.3,0.001]
[1753933951471,1.08758097,3868.4,3868.3,3.917]
[1753933952698,1.32975736,3868.4,3868.3,3.917]
[1753933953804,1.32975736,3868.4,3868.3,0.001]
[1753933954010,1.32975736,3868.4,3868.3,3.916]
[1753933954909,0.24216607,3868.4,3868.3,3.916]
[1753933955798,0.24216607,3868.4,3868.3,0.001]
[1753933956007,0.24216607,3868.4,3868.3,3.916]
[1753933956413,0.55,3868.5,3868.3,3.916]
[1753933957400,0.55,3868.5,3868.4,3.915]
[1753933957603,0.55,3868.5,3868.4,3.914]
[1753933957975,0.002,3868.8,3868.4,3.914]
[1753933958181,0.002,3868.8,3868.4,4.3056]
[1753933959400,0.002,3868.8,3868.5,3.918]
[1753933961821,0.002,3868.8,3868.4,0.3916]
[1753933962021,0.002,3868.8,3868.5,3.917]
[1753933962199,0.002,3868.8,3868.6,3.917]
[1753933962602,0.002,3868.8,3868.7,3.916]
[1753933962833,0.24408858,3868.8,3868.7,3.916]
[1753933963521,0.24408858,3868.8,3868.4,0.3926]
[1753933963717,0.002,3868.8,3868.5,4.38036]
[1753933964532,0.002,3868.8,3868.5,4.71436]
[1753933964826,0.002,3868.8,3868.6,3.916]
[1753933966128,1e-08,3868.8,3868.6,3.916]
[1753933967425,1e-08,3868.8,3868.7,4.82580971]
[1753933967598,1e-08,3868.8,3868.7,5.74652668]
[1753933971415,1e-08,3868.8,3868.7,9.66452668]
[1753933973640,0.01537658,3871.3,3868.7,9.66452668]
[1753933973941,0.01537658,3871.3,3869.9,4.82580971]
[1753933974151,0.01537658,3871.3,3870.0,10.127]
[1753933974351,0.01537658,3871.3,3870.1,1.49528097]
[1753933974941,0.01537658,3871.3,3870.3,4.82580971]
[1753933975123,0.01537658,3871.3,3870.4,3.917]
[1753933975531,0.01537658,3871.3,3870.4,10.917]
[1753933976320,1e-08,3870.9,3870.5,4.82580971]
[1753933976642,1e-08,3870.9,3870.6,5.10858097]
[1753933978222,1e-08,3871.3,3870.6,1.18258097]
[1753933978437,1e-08,3871.9,3871.2,4.82580971]
[1753933978628,1e-08,3871.9,3871.3,3.926]
[1753933979351,1e-08,3871.9,3871.4,3.934]
[1753933979956,1e-08,3871.9,3871.1,4.82580971]
[1753933980124,1e-08,3871.9,3871.2,4.41958097]
[1753933980453,1e-08,3871.9,3871.3,3.937]
[1753933980648,1e-08,3871.9,3871.4,3.937]
[1753933980856,1e-08,3871.9,3871.2,0.48258097]
[1753933981078,1e-08,3871.9,3871.3,3.937]
[1753933981232,1e-08,3871.9,3871.4,5.75034878]
[1753933982353,1e-08,3871.9,3871.4,0.92453907]
[1753933982661,0.55000001,3871.9,3871.5,3.942]
[1753933983016,0.55000001,3871.9,3871.1,6.207]
[1753933983216,0.55,3871.5,3871.1,6.207]
[1753933983662,5.37580971,3871.2,3871.1,6.207]
[1753933983824,5.91339068,3871.2,3871.1,10.152]
[1753933984453,5.91339068,3871.2,3871.1,3.945]
[1753933984652,0.55,3871.1,3869.6,6.207]
[1753933985045,0.55,3871.1,3869.7,3.945]
[1753933987230,0.55,3871.8,3869.7,3.945]
[1753933987553,0.00200001,3871.9,3869.8,8.0152]
[1753933988330,0.00200001,3871.9,3869.8,15.72857363]
[1753933988676,0.00200001,3871.9,3869.8,8.0152]
[1753933989080,0.55,3871.8,3869.8,8.0152]
[1753933989288,0.55,3871.8,3869.9,3.945]
[1753933989442,0.55,3871.6,3870.0,1.19602]
[1753933989846,0.00200001,3871.9,3870.0,1.19602]
[1753933990346,0.00200001,3871.9,3869.9,3.945]
[1753933991577,0.00200001,3871.9,3869.8,8.33014593]
[1753933991578,0.00200001,3871.9,3869.8,1.0152]
[1753933991877,0.00200001,3871.9,3870.0,3.949]
[1753933993351,0.00200001,3871.9,3869.8,1.0152]
[1753933993563,0.00200001,3871.9,3870.1,3.948]
[1753933993766,0.00200001,3871.9,3870.2,0.3948]
[1753933994388,0.00200001,3871.9,3870.3,4.25]
[1753933994562,0.00200001,3871.9,3870.3,8.198]
[1753933994758,0.00200001,3871.9,3870.3,4.25]
[1753933994963,0.00200001,3871.9,3870.4,3.948]
[1753933995283,0.00200001,3871.9,3870.5,4.80628]
[1753933996204,0.00200001,3871.9,3870.6,3.947]
[1753933996410,0.00200001,3871.9,3870.7,4.25]
[1753933996771,0.00200001,3871.9,3870.8,3.946]
[1753933996970,0.00200001,3871.9,3870.7,4.25]
[1753933997371,0.00200001,3871.9,3870.8,3.946]
[1753933997785,0.00200001,3871.9,3870.7,4.25]
[1753933998109,0.00200001,3871.9,3870.8,3.946]
[1753934000308,0.00200001,3871.9,3870.9,3.945]
[1753934000608,0.00200001,3871.9,3869.9,4.25]
[1753934000788,0.55,3871.5,3870.0,8.195]
[1753934000990,0.55,3871.5,3870.1,0.92102]
[1753934002414,0.55,3871.5,3870.2,3.945]
[1753934002706,0.55,3871.5,3870.1,0.92102]
[1753934002915,0.55,3871.5,3868.9,3.229]
[1753934003221,0.55,3871.0,3869.7,3.945]
[1753934003757,0.55,3871.0,3869.8,3.947]
[1753934004146,0.55,3871.0,3868.9,3.229]
[1753934004344,0.55,3870.8,3869.9,3.947]
[1753934006882,0.55,3870.8,3870.0,3.946]
[1753934011068,0.55,3871.5,3870.0,3.946]
[1753934011308,0.55,3871.3,3870.0,3.946]
[1753934011452,0.55,3871.1,3870.0,3.946]
[1753934011763,0.55,3870.9,3870.0,3.946]
[1753934012086,0.55,3871.5,3870.0,3.946]
[1753934012261,0.55,3871.3,3870.0,3.946]
[1753934012584,0.55,3871.1,3870.0,3.946]
[1753934012782,0.55,3870.9,3870.0,3.946]
[1753934013374,0.55,3871.5,3870.0,3.946]
[1753934013573,0.55,3871.3,3870.0,3.946]
[1753934013888,0.55,3871.1,3870.0,3.946]
[1753934014088,0.55,3870.9,3870.0,3.946]
[1753934015692,7.31494593,3871.1,3869.6,6.208]
[1753934015988,0.79153574,3871.0,3869.7,3.944]
[1753934016192,0.55,3870.8,3869.6,6.208]
[1753934016370,0.55,3870.8,3869.8,3.943]
[1753934017193,0.55,3870.8,3869.9,3.943]
[1753934017354,0.55,3871.5,3869.9,3.943]
[1753934017556,0.55,3871.3,3869.9,3.943]
[1753934017877,0.55,3871.1,3869.9,3.943]
[1753934020919,0.55,3870.8,3869.9,3.943]
[1753934021120,1.08635304,3870.8,3869.9,3.943]
[1753934021601,1.08635304,3870.8,3870.0,3.941]
[1753934023024,0.55,3870.4,3870.1,3.94]
[1753934026330,0.55,3870.4,3869.6,6.208]
[1753934026539,0.55,3870.4,3869.7,3.939]
[1753934028204,0.55,3870.4,3869.6,6.208]
[1753934028405,0.55,3870.4,3869.8,3.939]
[1753934028712,1.08635304,3870.4,3869.8,3.939]
[1753934029945,1.08635304,3870.4,3869.9,3.938]
[1753934030444,1.08635304,3870.4,3870.0,3.938]
[1753934031939,0.55,3870.0,3869.6,6.208]
[1753934032147,5.36353037,3869.7,3869.6,6.208]
[1753934032552,5.36353037,3869.7,3869.6,10.146]
[1753934032921,5.36353037,3869.7,3869.6,0.001]
[1753934033138,5.84754211,3869.7,3869.6,3.94]
[1753934033450,5.8473917,3869.7,3869.6,0.001]
[1753934033659,6.43213087,3869.7,3869.6,0.001]
[1753934034184,6.19020405,3869.7,3869.6,0.001]
[1753934035289,5.36353037,3869.3,3869.2,3.941]
[1753934038453,0.55,3869.3,3869.2,3.941]
[1753934039979,0.55,3869.3,3869.2,3.94]
[1753934040182,1.08635304,3869.3,3869.2,3.94]
[1753934042585,1.08635304,3869.3,3869.2,0.001]
[1753934048783,1.56969918,3869.3,3869.2,0.001]
[1753934049212,0.55,3869.2,3868.6,0.001]
[1753934049517,5.36353037,3868.7,3868.6,0.001]
[1753934049722,5.6051883,3868.7,3868.6,0.001]
[1753934060591,0.24165793,3868.7,3868.6,0.001]
[1753934060756,0.55,3868.9,3868.6,0.001]
[1753934060953,0.55,3868.7,3868.6,0.001]
[1753934061152,0.79165793,3868.7,3868.6,0.001]
[1753934064281,4.81353037,3870.1,3868.6,0.001]
[1753934064492,0.98327505,3869.9,3868.7,3.934]
[1753934064664,0.4829159,3869.8,3868.7,3.934]
[1753934064865,0.55,3869.6,3868.7,3.934]
[1753934065059,4.81353037,3870.1,3868.7,3.934]
[1753934065060,0.24145795,3869.5,3868.7,3.934]
[1753934065259,0.24145795,3869.4,3868.7,3.934]
[1753934065502,0.24145795,3869.3,3868.8,0.3935]
[1753934065808,0.24147522,3869.2,3868.8,0.3935]
[1753934066010,0.55,3869.8,3868.8,0.3935]
[1753934066160,0.55,3869.6,3868.8,0.3935]
[1753934066366,0.24146331,3869.5,3868.8,0.3935]
[1753934066579,0.24146331,3869.5,3868.9,0.43285]
[1753934066864,4.81353037,3870.2,3868.9,0.43285]
[1753934067090,0.48296372,3870.1,3868.9,0.43285]
[1753934067263,0.24148191,3870.0,3868.9,0.43285]
[1753934067464,0.24148191,3869.9,3868.9,0.43285]
[1753934067807,0.24148191,3869.8,3869.0,0.861685]
[1753934068000,4.81353037,3870.5,3869.0,0.861685]
[1753934068293,0.55,3870.3,3869.0,0.861685]
[1753934068491,0.55,3870.1,3869.0,0.861685]
[1753934068696,0.55,3869.9,3869.0,0.861685]
[1753934068903,0.55,3869.7,3869.1,0.5544535]
[1753934069189,0.55,3870.4,3869.2,3.934]
[1753934069401,0.55,3870.2,3869.2,3.934]
[1753934069556,0.24150016,3870.1,3869.2,3.934]
[1753934071965,0.002,3869.8,3869.2,3.934]
[1753934072293,0.002,3869.8,3869.2,4.46901385]
[1753934072599,0.002,3869.8,3869.2,0.53501385]
[1753934072765,0.002,3869.8,3869.3,3.932]
[1753934073093,0.002,3869.8,3869.4,3.932]
[1753934073889,0.55,3869.7,3869.5,3.932]
[1753934074189,0.55,3869.7,3868.9,4.25]
[1753934074382,0.55,3869.7,3869.0,3.932]
[1753934074993,0.552,3869.8,3869.0,3.932]
[1753934075192,0.552,3869.8,3869.1,3.933]
[1753934077320,0.53655304,3869.7,3869.1,3.933]
[1753934077872,0.55,3869.4,3868.6,0.001]
[1753934078108,0.55,3869.4,3868.7,3.931]
[1753934082402,0.55,3869.4,3868.6,0.001]
[1753934082600,0.55,3869.4,3868.8,3.931]
[1753934082807,0.55,3869.4,3868.6,0.001]
[1753934083105,0.55,3869.2,3868.9,3.93]
[1753934083681,0.55,3869.2,3868.6,0.001]
[1753934083881,4.81353037,3869.1,3868.6,0.001]
[1753934084108,4.81353037,3869.1,3868.7,3.93]
[1753934085304,0.55,3869.0,3868.6,0.001]
[1753934085471,4.81353037,3869.1,3868.8,3.93]
[1753934085472,1.08635304,3868.9,3868.8,3.93]
[1753934090013,0.55,3868.8,3868.6,0.001]
[1753934090169,0.55,3868.8,3868.7,3.929]
[1753934091405,0.53635304,3868.9,3868.7,3.929]
[1753934091587,0.55,3869.0,3868.7,3.929]
[1753934093715,0.19574627,3869.8,3868.7,3.929]
[1753934093955,0.55,3869.5,3868.7,3.929]
[1753934094118,0.55,3869.3,3868.7,3.929]
[1753934094323,0.55,3869.1,3868.7,3.929]
[1753934095192,0.002,3869.2,3868.7,3.929]
[1753934095588,0.55,3869.1,3868.7,3.929]
[1753934096322,0.002,3869.2,3868.7,3.929]
[1753934096822,0.55,3869.1,3868.7,3.929]
[1753934096980,0.24213433,3869.0,3868.7,3.929]
[1753934097808,0.55,3869.1,3868.7,3.929]
[1753934097993,0.24209051,3869.0,3868.7,3.929]
[1753934098924,1.08655304,3869.1,3868.7,3.929]
[1753934099122,0.24207794,3869.0,3868.7,3.929]
[1753934100425,0.55,3868.9,3868.7,3.929]
[1753934100719,0.55,3869.0,3868.6,0.001]
[1753934100927,0.55,3868.7,3868.6,0.001]
[1753934101127,0.55,3868.7,3868.6,3.927]
[1753934101621,0.59020834,3868.9,3868.6,3.927]
[1753934101790,0.55,3868.8,3868.6,3.927]
[1753934101985,4.81553037,3869.2,3868.6,3.927]
[1753934101986,0.55,3869.1,3868.6,3.927]
[1753934102190,0.55,3868.9,3868.6,3.927]
[1753934102421,0.002,3869.2,3868.6,3.927]
[1753934105235,0.002,3869.2,3868.7,4.25]
[1753934105816,0.002,3869.2,3868.8,3.929]
[1753934106014,0.002,3869.2,3868.8,4.747]
[1753934109432,0.002,3869.2,3868.8,0.818]
[1753934109637,0.002,3869.2,3868.9,3.929]
[1753934109836,0.002,3869.2,3868.8,0.818]
[1753934110015,0.002,3869.2,3868.9,3.929]
[1753934110203,0.002,3869.2,3868.8,0.818]
[1753934110403,0.002,3869.2,3868.9,3.928]
[1753934110617,0.002,3869.2,3868.9,4.8277]
[1753934111532,0.002,3869.2,3868.9,0.8997]
[1753934111734,0.002,3869.2,3869.0,3.928]
[1753934112936,0.002,3869.2,3869.1,3.928]
[1753934113701,0.002,3869.2,3868.6,4.251]
[1753934113902,0.002,3869.2,3868.7,3.927]
[1753934115319,0.002,3869.2,3868.8,4.25]
[1753934115647,0.002,3869.2,3868.9,1.29915304]
[1753934118533,0.002,3869.2,3869.0,4.25]
[1753934118734,0.002,3869.2,3869.1,3.926]
[1753934120489,1e-08,3869.2,3869.1,3.926]
[1753934121652,1e-08,3869.2,3869.1,8.176]
[1753934121984,1e-08,3869.2,3869.1,9.1235153]
[1753934125080,1e-08,3869.2,3869.1,15.3335153]
[1753934128027,1e-08,3869.2,3869.1,6.21]
[1753934128198,4.81353038,3869.2,3869.1,6.21]
[1753934128533,0.55,3869.1,3868.6,0.001]
[1753934128709,1.33413909,3869.1,3868.7,3.994]
[1753934129215,0.55,3869.1,3868.7,3.994]
[1753934129429,0.55,3869.1,3868.6,0.001]
[1753934129588,0.55,3869.1,3868.7,3.995]
[1753934130090,4.81353038,3869.2,3868.8,3.994]
[1753934130091,1e-08,3869.2,3868.8,3.994]
[1753934130896,1e-08,3869.2,3868.6,0.001]
[1753934131190,1e-08,3869.2,3868.9,3.994]
[1753934133419,1e-08,3869.2,3868.6,0.001]
[1753934133596,1e-08,3869.2,3868.7,3.993]
[1753934134999,1e-08,3869.2,3868.8,4.25]
[1753934135410,1e-08,3869.2,3868.9,4.25]
[1753934137521,1e-08,3869.2,3868.7,8.80653037]
[1753934138605,1e-08,3869.2,3868.8,0.001]
[1753934138817,1e-08,3869.2,3868.9,0.92338304]
[1753934139502,1e-08,3869.2,3869.0,8.80053037]
[1753934148123,1e-08,3869.2,3869.1,4.25]
[1753934148996,1e-08,3869.2,3869.1,8.231]
[1753934153268,1e-08,3869.2,3869.1,4.25]
[1753934153471,1e-08,3869.2,3869.1,9.22679134]
[1753934154728,1e-08,3869.2,3869.1,5.24879134]
[1753934154933,1e-08,3869.2,3869.1,4.25]
[1753934155355,1e-08,3869.2,3869.1,8.225]
[1753934156236,1e-08,3869.2,3869.1,14.434]
[1753934158491,1e-08,3869.2,3869.1,10.459]
[1753934158788,1e-08,3869.2,3869.1,14.431]
[1753934158997,1e-08,3869.2,3869.1,10.459]
[1753934159162,1e-08,3869.2,3869.1,14.431]
[1753934159363,1e-08,3869.2,3869.1,10.459]
[1753934159687,1e-08,3869.2,3868.8,0.001]
[1753934159889,5.36353037,3868.9,3868.8,0.001]
[1753934160995,5.36353037,3868.9,3868.8,3.978]
[1753934162264,5.36353037,3868.9,3868.8,3.977]
[1753934164061,0.55,3868.8,3868.6,0.001]
[1753934164261,0.55,3868.8,3868.7,3.975]
[1753934164496,5.89988341,3868.8,3868.7,3.975]
[1753934165294,5.89988341,3868.8,3868.3,0.001]
[1753934165507,5.89988341,3868.8,3868.1,0.001]
[1753934165702,0.55,3867.9,3865.9,6.211]
[1753934165880,5.36353037,3867.6,3867.5,3.975]
[1753934166080,5.84682193,3867.6,3867.5,3.975]
[1753934166406,5.36353037,3867.6,3867.5,3.975]
[1753934167801,5.36353037,3867.6,3867.5,0.001]
[1753934175623,5.55402314,3867.6,3867.5,0.001]
[1753934175823,6.17588283,3867.6,3867.5,0.001]
[1753934182433,0.62185969,3867.6,3867.5,0.001]
[1753934182739,0.55,3867.9,3867.5,0.001]
[1753934183239,0.24005535,3867.8,3867.5,0.001]
[1753934183397,4.81353037,3868.7,3867.5,0.001]
[1753934183601,0.24007598,3868.6,3867.5,0.001]
[1753934183801,4.81353037,3868.8,3867.5,0.001]
[1753934183802,0.24007598,3868.5,3867.5,0.001]
[1753934184002,0.24007598,3868.4,3867.5,0.001]
[1753934184221,0.24007598,3868.3,3867.5,0.001]
[1753934184441,3.965,3868.7,3867.5,0.001]
[1753934184442,0.55,3868.1,3867.5,0.001]
[1753934185342,0.55,3868.7,3867.5,0.001]
[1753934185538,0.55,3868.5,3867.5,0.001]
[1753934185714,0.55,3868.3,3867.5,0.001]
[1753934186416,0.54913139,3868.6,3867.5,0.001]
[1753934186619,0.55,3868.4,3867.5,0.001]
[1753934187115,0.2405104,3868.3,3867.5,0.001]
[1753934187316,0.55,3868.2,3867.5,0.001]
[1753934188307,0.55,3868.0,3867.5,0.001]
[1753934189145,0.55,3868.2,3867.5,0.001]
[1753934189356,0.55,3868.0,3867.5,0.001]
[1753934191450,0.55,3867.8,3867.5,0.001]
[1753934191930,0.55,3868.2,3867.5,0.001]
[1753934192114,0.55,3868.0,3867.5,0.001]
[1753934192316,0.55,3867.8,3867.5,0.001]
[1753934193259,0.55,3868.0,3867.5,0.001]
[1753934193552,0.55,3867.8,3867.5,0.001]
[1753934193919,0.55,3868.2,3867.5,0.001]
[1753934194121,0.55,3868.0,3867.5,0.001]
[1753934194321,0.24163529,3867.9,3867.5,0.001]
[1753934194552,0.24163529,3867.8,3867.5,0.001]
[1753934194755,3.959,3868.8,3867.5,0.001]
[1753934194756,0.55,3868.8,3867.5,0.001]
[1753934194956,0.48354884,3868.7,3867.5,0.001]
[1753934195156,0.55,3868.5,3867.5,0.001]
[1753934195319,0.55,3868.3,3867.5,0.001]
[1753934195519,0.55,3868.1,3867.5,0.001]
[1753934195857,0.55,3867.9,3867.5,0.001]
[1753934196154,0.55,3867.7,3867.5,0.001]
[1753934196334,0.55,3868.5,3867.5,0.001]
[1753934196540,0.55,3868.3,3867.5,0.001]
[1753934196841,0.55,3868.1,3867.5,0.001]
[1753934197037,0.55,3867.9,3867.5,0.001]
[1753934197245,4.81353037,3869.3,3867.5,4.81453037]
[1753934197453,0.4837398,3869.1,3867.5,4.81453037]
[1753934197755,1.0337398,3869.0,3867.5,4.81453037]
[1753934197955,0.55,3868.8,3867.6,0.48155304]
[1753934198150,0.55,3868.6,3867.5,0.001]
[1753934198454,0.2418699,3868.5,3867.5,0.001]
[1753934198664,0.55,3868.3,3867.5,0.001]
[1753934198851,0.55,3868.1,3867.5,0.001]
[1753934199020,0.55,3868.1,3867.5,0.4262]
[1753934199554,5.36353037,3868.9,3867.6,3.956]
[1753934199747,0.55,3868.7,3867.6,3.956]
[1753934200053,5.36353037,3868.9,3867.6,3.956]
[1753934200054,0.55,3868.5,3867.6,3.956]
[1753934200265,0.24177436,3868.4,3867.6,3.956]
[1753934200566,0.55,3868.2,3867.6,3.956]
[1753934200778,0.55,3868.0,3867.6,3.956]
[1753934202559,0.55,3868.8,3867.6,4.7768]
[1753934202858,0.55,3868.6,3867.6,4.7768]
[1753934203055,0.55,3868.4,3867.6,4.7768]
[1753934203363,0.002,3868.1,3867.6,4.7768]
[1753934203525,0.002,3868.1,3867.7,0.47788]
[1753934206459,0.002,3868.1,3867.8,3.953]
[1753934206664,0.002,3868.1,3867.9,3.952]
[1753934207930,0.002,3868.1,3867.5,0.001]
[1753934208125,0.002,3868.1,3867.6,3.952]
[1753934208460,0.002,3868.1,3867.5,0.001]
[1753934208757,0.002,3868.1,3867.6,3.951]
[1753934209957,0.002,3868.1,3867.6,4.3463]
[1753934214458,0.002,3868.1,3867.6,3.951]
[1753934215259,0.552,3868.1,3867.6,3.951]
[1753934216563,0.002,3868.1,3867.7,3.947]
[1753934217049,0.552,3868.1,3867.7,3.947]
[1753934217981,0.002,3868.1,3867.5,0.001]
[1753934218170,0.002,3868.1,3867.8,3.946]
[1753934219388,0.002,3868.1,3868.0,4.81353037]
[1753934220893,0.002,3868.1,3868.0,9.06353037]
[1753934221105,0.002,3868.5,3868.0,9.06353037]
[1753934221251,0.002,3869.9,3868.9,4.81353037]
[1753934221546,0.24217233,3869.1,3869.0,3.944]
[1753934222777,0.55,3869.4,3869.0,3.944]
[1753934222983,0.24217233,3869.3,3869.0,3.944]
[1753934223150,0.24217234,3869.2,3869.0,3.944]
[1753934223351,1e-08,3869.2,3869.0,3.944]
[1753934223654,1e-08,3869.2,3869.0,4.81975304]
[1753934224746,1e-08,3869.2,3869.0,3.944]
[1753934225999,0.002,3869.1,3869.0,3.944]
[1753934226198,0.002,3869.1,3869.0,3.943]
[1753934227066,0.002,3869.1,3868.6,4.25]
[1753934227267,0.002,3869.1,3868.7,3.942]